Cogmind - Beta 13 @@@ ROGUE MODE // 2024.04.07 @ 00:14:53 Player: TheDoorMatt Result: Destroyed by G-47 Trooper with Particle Gun Performance ------------- Evolutions (3) 1500 Regions Visited (5) 1000 Robots Destroyed (29) 145 Value Destroyed (1005) 1005 Prototype IDs (0) 0 Alien Tech Used (0) 0 Bonus (511) 511 TOTAL SCORE: 4161 Bonus ------- High Alert Combat Kills 11 Entered DSFs 500 Cogmind --------- Core Integrity 0/700 Matter 219/300 Energy 67/100 System Corruption 0% Temperature Cool (9) Movement Rolling (115) Ox1 Location -7/DSF Parts ------- > --- POWER (1) -------- (None) > --- PROPULSION (2) --- Compact Wheel Compact Wheel > --- UTILITY (5) ------ Coolant Injector High-capacity Storage Unit > --- WEAPON (5) ------- Heavy Laser > --- INVENTORY (20) --- Improved Heat Sink Coolant Injector Coolant Injector Medium Matter Pod (0) Improved Signal Interpreter Layered Medium Armor Plating System Restoration Module System Restoration Module Heavy Laser Heavy Laser Heavy Laser Heavy Laser Assault Rifle Heavy Assault Rifle Mini Grenade Launcher Mini Grenade Launcher Peak State ------------ > --- POWER ------------ Improved Ion Engine > --- PROPULSION ------- Light Treads Light Treads > --- UTILITY ---------- Heat Sink Heat Sink High-capacity Storage Unit Signal Interpreter Tractor Beam > --- WEAPON ----------- Beam Rifle Heavy Laser Heavy Laser Heavy Laser Heavy Laser > --- INVENTORY -------- Ion Engine Light Ion Engine Light Treads Light Treads Improved Heat Sink Medium Matter Pod Improved Signal Interpreter System Restoration Module System Restoration Module Heavy Laser Heavy Laser Heavy Laser Heavy Laser Assault Rifle Heavy Assault Rifle Mini Grenade Launcher Mini Grenade Launcher Mini Grenade Launcher [Rating: 31] Favorites ----------- Power Light Ion Engine Engine Light Ion Engine Propulsion Light Treads Treads Light Treads Leg Aluminum Leg Wheel Compact Wheel Flight Unit Flight Unit Utility Heat Sink Device Heat Sink Storage High-capacity Storage Unit Processor Signal Interpreter Protection Light Armor Plating Weapon Small Laser Energy Gun Small Laser Ballistic Gun Heavy Assault Rifle Launcher Mini Grenade Launcher Build | -11 -10 -9 -8 -7 -7 ------- Run | Yrd Mat Mat Mat Fac DSF Slots Evolved 6 | . . 2 2 2 . Power . | . . . . . . Propulsion . | . . . . . . Utility 3 | . . 2 1 . . Weapon 3 | . . . 1 2 . Parts Attached 66 | 6 4 15 15 6 20 Power 7 | 1 . 2 1 1 2 Engine 7 | 1 . 2 1 1 2 Core . | . . . . . . Reactor . | . . . . . . Propulsion 14 | 2 . 6 2 . 4 Treads 7 | . . 3 2 . 2 Leg 1 | . . 1 . . . Wheel 4 | 2 . . . . 2 Hover . | . . . . . . Flight 2 | . . 2 . . . Utility 11 | 1 2 3 2 2 1 Device 5 | . . 2 . 2 1 Storage 2 | 1 1 . . . . Processor 1 | . . 1 . . . Hackware . | . . . . . . Protection 3 | . 1 . 2 . . Artifact . | . . . . . . Weapon 34 | 2 2 4 10 3 13 Energy Gun 27 | 2 1 3 6 3 12 Energy Cannon . | . . . . . . Ballistic Gun 3 | . . . 3 . . Ballistic Cannon . | . . . . . . Launcher 4 | . 1 1 1 . 1 Special Weapon . | . . . . . . Impact Weapon . | . . . . . . Slashing Weapon . | . . . . . . Piercing Weapon . | . . . . . . Special Melee Weapon . | . . . . . . Unidentified Prototypes . | . . . . . . Parts Lost 29 | . 1 4 7 . 17 Power 4 | . . . 1 . 3 Propulsion 7 | . 1 1 1 . 4 Utility 7 | . . 1 3 . 3 Weapon 11 | . . 2 2 . 7 Highest Loss Streak 15 | . 1 2 2 . 15 To Critical Strikes . | . . . . . . Average Slot Usage (%) 87 | . 76 85 93 95 78 Engine 9 | . 14 11 9 7 3 Treads 13 | . . 14 18 15 9 Wheel 3 | . 18 3 . . . Device 12 | . . 17 9 18 20 Storage 9 | . 14 11 9 7 7 Processor 5 | . . 3 9 7 6 Protection 4 | . 1 2 11 . . Energy Gun 19 | . 26 19 14 23 22 Ballistic Gun 4 | . . . 8 7 1 Launcher 3 | . 1 1 4 7 4 Naked Turns . | . . . . . . Heaviest Build 69 | 10 48 51 62 60 69 Greatest Support 40 | 32 32 40 40 40 40 Greatest Overweight (x) 17 | . 2 3 1 1 17 Average Overweight (x) 1 | . 1 1 1 1 3 Largest Inventory Capacity 20 | 8 20 20 20 20 20 Average Capacity 19 | 6 19 20 20 20 20 Most Carried 20 | 7 12 14 18 17 20 Average Carried 12 | 3 9 9 13 14 18 Final Capacity 20 | 8 20 20 20 20 20 Final Carried 17 | 6 12 14 17 16 16 Class Distribution -------------------- 42% | Mutant 34% | Scavenger-Tank 20% | Scavenger-Gunner Dominant Class ---------------- Mutant | -10/Materials Mutant | -9/Materials Scavenger-Tank | -8/Materials Scavenger-Gunner | -7/Factory Scavenger-Gunner | -7/DSF Resources | -11 -10 -9 -8 -7 -7 ----------- Run | Yrd Mat Mat Mat Fac DSF Matter Collected 943 | 159 136 250 288 76 34 Remotely 34 | . . . . 10 24 Salvage Created 1364 | . 95 271 910 88 . Parts 60 | . 4 24 29 3 . Haulers Intercepted . | . . . . . . Recyclers Shooed 2 | . . 1 1 . . Parts Field Recycled . | . . . . . . Retrieved Matter . | . . . . . . Parts Self-Destructed . | . . . . . . Prevented . | . . . . . . Kills | -11 -10 -9 -8 -7 -7 ------- Run | Yrd Mat Mat Mat Fac DSF Combat Hostiles Destroyed 20 | . 2 7 11 . . Guns 18 | . 2 7 9 . . AOE 2 | . . . 2 . . Classes Destroyed 7 | . 1 3 2 1 . Worker 1 | . . . . 1 . Recycler 6 | . . . 5 1 . Operator 2 | . . 1 1 . . Swarmer 3 | . . 3 . . . Grunt 12 | . 2 1 9 . . Sentry 4 | . . 3 1 . . Hunter 1 | . . . 1 . . Best Kill Streak 4 | . 2 4 3 2 . Combat Bots Only 4 | . 2 4 3 . . Max Kills in Single Turn 2 | . 2 1 1 1 . Gunslinging 1 | . 1 . . . . Exploded 1 | . . . 1 . . Melee . | . . . . . . Uniques/NPCs Destroyed . | . . . . . . Combat | -11 -10 -9 -8 -7 -7 -------- Run | Yrd Mat Mat Mat Fac DSF Hostile Shots Fired 245 | . 15 49 67 . 114 Missed 65 | . 4 15 20 . 26 Damage Taken 3604 | . 211 617 804 . 1972 Core 967 | . 69 112 76 . 710 Absorbed by Shields . | . . . . . . Core Remaining (%) 82 | 100 72 72 86 . . Volleys Fired 98 | . 12 39 42 2 3 Largest 4 | . 2 2 3 4 4 Hottest 215 | . 80 80 122 179 215 Shots Fired 201 | . 22 56 103 8 12 Gun 184 | . 20 46 98 8 12 Cannon . | . . . . . . Launcher 17 | . 2 10 5 . . Special . | . . . . . . Kinetic 40 | . . . 38 2 . Thermal 134 | . 20 46 50 6 12 Explosive 17 | . 2 10 5 . . Electromagnetic 10 | . . . 10 . . Robot Hit Streak 12 | . 12 9 9 4 5 Robot Miss Streak 6 | . 2 5 6 1 1 Penetration Max . | . . . . . . Secondary Targets 2 | . 1 . 1 . . Max Gunslinging Chain 1 | . 1 . 1 . . Shots Hit Robots 116 | . 12 29 61 4 10 Core Hits 59 | . 5 14 33 3 4 Critical Kills . | . . . . . . Critical Parts Destroyed . | . . . . . . Critical Strikes 2 | . . . 2 . . Burn 2 | . . . 2 . . Melee Attacks . | . . . . . . Impact . | . . . . . . Slashing . | . . . . . . Piercing . | . . . . . . Sneak Attacks . | . . . . . . Combat Hostiles . | . . . . . . Follow-up Attacks . | . . . . . . Damage Inflicted 2145 | . 144 398 1411 52 140 Guns 1557 | . 144 322 899 52 140 Cannons . | . . . . . . Explosions 586 | . . 76 510 . . Melee . | . . . . . . Ramming 2 | . . . 2 . . Kinetic 281 | . . . 281 . . Thermal 1197 | . 144 322 539 52 140 Explosive 552 | . . 76 476 . . Electromagnetic 113 | . . . 113 . . Impact . | . . . . . . Slashing . | . . . . . . Piercing . | . . . . . . Highest Corruption 3 | . 3 . . . . Average Corruption 2 | . 2 . . . . Corruption Purged . | . . . . . . Corruption Blocked . | . . . . . . Overload Shots . | . . . . . . Overflow Damage 10 | . . 4 6 . . Projectiles . | . . . . . . Explosions 10 | . . 4 6 . . Melee . | . . . . . . Knockbacks . | . . . . . . Impact . | . . . . . . Kinetic . | . . . . . . Secondary . | . . . . . . Self-Inflicted Damage 301 | . 25 215 61 . . Shots 8 | . 1 5 2 . . Rammed 1 | . . . 1 . . Targets Rammed 1 | . . . 1 . . Kicked . | . . . . . . Crushed . | . . . . . . Highest Temperature 204 | . 204 2 204 33 6 Average Temperature 63 | . 80 2 62 22 4 Received Heat Transfer 825 | . 84 120 369 . 252 Siege Activations . | . . . . . . Robots Corrupted . | . . . . . . Combat Hostiles . | . . . . . . Parts Fried . | . . . . . . Impact Corruptions . | . . . . . . Robots Melted . | . . . . . . Combat Hostiles . | . . . . . . Parts Melted 7 | . . 2 4 1 . Heat Transferred 2867 | . 325 750 1322 124 346 Parts Sabotaged . | . . . . . . Parts Stolen . | . . . . . . Parts Stripped . | . . . . . . Power Chain Reactions 1 | . . . 1 . . Alert | -11 -10 -9 -8 -7 -7 ------- Run | Yrd Mat Mat Mat Fac DSF Peak Influence 431 | . 78 431 258 119 86 Initial 116 | . . 32 116 109 86 Average 165 | . 41 319 170 116 50 Maximum Alert Level 2 | . . 2 1 . . Low Security (%) 62 | 100 100 11 59 100 100 Level 1 28 | . . 53 40 . . Level 2 8 | . . 34 . . . Level 3 . | . . . . . . Level 4 . | . . . . . . Level 5 . | . . . . . . High Security . | . . . . . . Max Security . | . . . . . . Squads Dispatched 5 | . 1 1 2 . 1 Investigation 1 | . . . 1 . . Extermination . | . . . . . . Reinforcement 4 | . 1 1 1 . 1 Assault . | . . . . . . Garrison . | . . . . . . Intercept . | . . . . . . Searches Triggered . | . . . . . . Construction Impeded 1 | . . 1 . . . Haulers Reinforced . | . . . . . . Active Scanning Responses . | . . . . . . Cargo Convoy Interrupts . | . . . . . . Stealth | -11 -10 -9 -8 -7 -7 --------- Run | Yrd Mat Mat Mat Fac DSF Distress Signals 1 | . . . 1 . . Communications Jammed . | . . . . . . Distress Signals . | . . . . . . Times Spotted 35 | . 3 10 14 . 8 Peak Tracking Total 6 | . 2 6 5 . 6 Tactical Retreats 4 | . . . 1 . 3 Traps | -11 -10 -9 -8 -7 -7 ------- Run | Yrd Mat Mat Mat Fac DSF Traps Triggered 3 | . 3 . . . . Indirectly . | . . . . . . Trap Hack Attempts . | . . . . . . Triggered . | . . . . . . Disarmed . | . . . . . . Reprogrammed . | . . . . . . Reused . | . . . . . . Traps Extracted . | . . . . . . Installed . | . . . . . . Triggered . | . . . . . . Machines | -11 -10 -9 -8 -7 -7 ---------- Run | Yrd Mat Mat Mat Fac DSF Machines Disabled 13 | . 1 12 . . . Max in Single Turn 3 | . 1 3 . . . Machines Repaired . | . . . . . . Machines Dismantled . | . . . . . . Machines Sabotaged . | . . . . . . Overloaded Fab Kills . | . . . . . . Hacking | -11 -10 -9 -8 -7 -7 --------- Run | Yrd Mat Mat Mat Fac DSF Machines Accessed 4 | . 1 . 2 1 . Terminals 4 | . 1 . 2 1 . Fabricators . | . . . . . . Repair Stations . | . . . . . . Recycling Units . | . . . . . . Scanalyzers . | . . . . . . Garrison Access . | . . . . . . Total Hacks 8 | . 2 . 5 1 . Successful 5 | . 1 . 3 1 . Failed 3 | . 1 . 2 . . Catastrophic . | . . . . . . Database Lockouts . | . . . . . . Manual . | . . . . . . Terminals 8 | . 2 . 5 1 . Fabricators . | . . . . . . Repair Stations . | . . . . . . Recycling Units . | . . . . . . Scanalyzers . | . . . . . . Garrison Access . | . . . . . . Terminal Hacks 5 | . 1 . 3 1 . Record 2 | . . . 2 . . Open DSF 1 | . . . . 1 . Hauler Manifests 1 | . 1 . . . . Zone Layout 1 | . . . 1 . . Fabricator Hacks . | . . . . . . Repair Station Hacks . | . . . . . . Recycling Unit Hacks . | . . . . . . Scanalyzer . | . . . . . . Garrison Access Hacks . | . . . . . . Unauthorized Hacks . | . . . . . . Terminals . | . . . . . . Fabricators . | . . . . . . Repair Stations . | . . . . . . Recycling Units . | . . . . . . Scanalyzers . | . . . . . . Garrison Access . | . . . . . . Data Cores Recovered 1 | . . . 1 . . Used . | . . . . . . Hacking Detections 3 | . . . 2 1 . Full Trace Events 1 | . . . 1 . . Feedback Events . | . . . . . . Feedback Blocked . | . . . . . . Robot Schematics Acquired . | . . . . . . Robots Built . | . . . . . . Authchips . | . . . . . . Time . | . . . . . . Total Robot Build Rating . | . . . . . . Part Schematics Acquired . | . . . . . . Parts Built . | . . . . . . Authchips . | . . . . . . Time . | . . . . . . Total Part Build Rating . | . . . . . . Parts Repaired . | . . . . . . Time . | . . . . . . Parts Recycled . | . . . . . . Recycled Matter . | . . . . . . Retrieved Matter . | . . . . . . Retrieved Components . | . . . . . . Parts Scanalyzed . | . . . . . . Part Schematics Acquired . | . . . . . . Parts Damaged . | . . . . . . Bothacking | -11 -10 -9 -8 -7 -7 ------------ Run | Yrd Mat Mat Mat Fac DSF Used RIF Installer . | . . . . . . Robots Hacked . | . . . . . . Non-combat . | . . . . . . Combat . | . . . . . . Robot Hacks Applied . | . . . . . . Relay Couplers Released . | . . . . . . Fabnet Peak Effective % . | . . . . . . Robots Rewired . | . . . . . . Allies Hacked . | . . . . . . Hacks Repelled . | . . . . . . Allies | -11 -10 -9 -8 -7 -7 -------- Run | Yrd Mat Mat Mat Fac DSF Total Allies . | . . . . . . Largest Group . | . . . . . . Highest-Rated Group . | . . . . . . Highest-Rated Ally . | . . . . . . Total Orders . | . . . . . . Ally Attacks . | . . . . . . Total Damage . | . . . . . . Kills . | . . . . . . Allies Corrupted . | . . . . . . Allies Melted . | . . . . . . Intel | -11 -10 -9 -8 -7 -7 ------- Run | Yrd Mat Mat Mat Fac DSF Robot Analysis Total . | . . . . . . Derelict Logs Recovered . | . . . . . . Drone Launches . | . . . . . . Drone Recoveries . | . . . . . . Exploration | -11 -10 -9 -8 -7 -7 ------------- Run | Yrd Mat Mat Mat Fac DSF Turns Passed 2023 | 60 266 513 736 187 261 Spaces Moved 775 | 46 178 188 239 65 59 Core 12 | 3 . . . . 9 Treads 468 | . . 116 239 65 48 Legs . | . . . . . . Wheels 295 | 43 178 72 . . 2 Hover . | . . . . . . Flight . | . . . . . . Fastest Speed 50 | 50 100 130 240 240 115 Average Speed 201 | 96 122 201 240 240 323 Slowest Speed 900 | 100 130 240 240 240 900 Overloaded Moves . | . . . . . . Propulsion Burnouts . | . . . . . . Robots Hopped . | . . . . . . Cave-ins Triggered . | . . . . . . Exploration Rate (%) 25 | 3 32 28 26 2 60 Regions Visited 5 Branch Regions . Pre-discovered Areas . | . . . . . . Known Exits Taken 3 | . . 1 1 1 . Unknown Exits Taken 2 | 1 1 . . . . Scrap Searched . | . . . . . . Spaces Dug . | . . . . . . Terrain Destroyed 140 | . 12 85 43 . . Melee . | . . . . . . Projectile . | . . . . . . AOE 140 | . 12 85 43 . . Terrain Rammed . | . . . . . . Walls Destroyed . | . . . . . . Machines Disabled . | . . . . . . Actions | -11 -10 -9 -8 -7 -7 --------- Run | Yrd Mat Mat Mat Fac DSF Total 1051 | 59 202 265 313 91 121 Wait 44 | . 2 8 . 15 19 Move 770 | 45 177 187 238 64 59 Hop . | . . . . . . Pick Up 51 | 8 6 11 11 3 12 Fast Attach 15 | 4 2 3 2 1 3 Attach 29 | 2 . 6 8 4 9 Detach 3 | . . . 3 . . Swap 22 | . 2 6 5 1 8 Drop 18 | . 1 5 3 1 8 Fire 98 | . 12 39 42 2 3 Melee . | . . . . . . Ram . | . . . . . . Kick . | . . . . . . Crush 1 | . . . 1 . . Escape Stasis . | . . . . . . Rewire . | . . . . . . Trap . | . . . . . . Miscellaneous . | . . . . . . Route ------- -11/Scrapyard -10/Materials -9/Materials -8/Materials -7/Factory -7/DSF History --------- Turn | Location | Event 17 | -11/Scrapyard | Discovered new exit (range 16) 61 | -11/Scrapyard | Entered Materials 287 | -10/Materials | Discovered new exit (range 5) 304 | -10/Materials | Build established: Mutant 327 | -10/Materials | Entered another Materials area 327 | -9/Materials | Evolved 2 slots: Utility x2 717 | -9/Materials | Discovered new exit (range 16) 838 | -9/Materials | Identified exit to Materials 840 | -9/Materials | Entered another Materials area 840 | -8/Materials | Evolved 2 slots: Utility x1, Weapon x1 1145 | -8/Materials | Build established: Scavenger-Tank 1566 | -8/Materials | Discovered new exit (range 5) 1573 | -8/Materials | Identified exit to Factory 1576 | -8/Materials | Entered Factory 1576 | -7/Factory | Evolved 2 slots: Weapon x2 1763 | -7/Factory | Identified exit to DSF 1763 | -7/Factory | Entered DSF 1851 | -7/DSF | Additional patrols routed to DSF 1882 | -7/DSF | Build established: Scavenger-Gunner 1993 | -7/DSF | Core integrity fell below 50% 2004 | -7/DSF | Core integrity fell below 20% 2024 | -7/DSF | Destroyed by G-47 Trooper with Particle Gun Last Messages --------------- Sml. Laser destroyed. Lgt. Ion Engine destroyed. Knocked back. Acquired 7 matter. C-30 ARC bursts open, deploying its payload. S-27 Virus unfolds itself. Beam Rifle destroyed. Mni. Grenade Launcher destroyed. Knocked back. Acquired 3 matter. Heat Sink destroyed. Med. Laser destroyed. Critical hit (Burn: +37). Heat Sink destroyed. Knocked back. Hvy. Laser destroyed. S-27 Virus destroyed. Signal Interpreter destroyed. S-27 Virus destroyed. Acquired Com. Wheel. Map ----- +----------------------------------------------------+ | | | | | | | | | | | | | | | | | ??????????????????????????????????? | | ??????????????????????????????????? | | ??????????????????????????????????? | | ??????????????????????????????????? | | ??????????????????????????????????? | | ??????????????????????????????????? | | ????????##"#??????????????????????? | | ????????""""??????????????????????? | | ???????"""""??????????????????????? | | ???????"" ??????????????????????? | | ????????" ??????????? ????????? | | ????????" x??????????? #???????? | | ????????# #??????????? ##??????? | | ???????## ##?????????? ??????? | | ???????#= =??????????? ???????? | | ???????#= =??????????? ^ ???????? | | ???????## ###????????#^ ###?????? | | ???????#= @==#????????! !!#?????? | | ???????#= =#????????! !!#?????? | | ???????#= =#????????! !!??????? | | ??????###sg##########?# #???###?? | | ?????## H## #!!!### "%##?===#?? | | ?????#" %;" %#!!!## " ##===#]] | | ?????#"!! | | ?????##!! % | | ?????#;!! = % | | ?????#; ## #!!!"# ##!!!#?? | | ?????## ## #!! ### ##??????? | | ??????############"###" ###?????? | | ?????????????????####!! % !!#?????? | | ????????????????????#!! !!#?????? | | ????????????????????#!! !!#?????? | | ????????????????????##"% "##?????? | | ????????????????????#!! #?????? | | ????????????????????#!! #?????? | | ????????????????????#!! ####### | | ????????????????????##" "##[ #]] | | ????????????????????###% ### [#]] | | ????????????????????# % [^[ | | ????????????????????# ^ | | ????????????????????#! !!# # | | ????????????????????# ! !!####### | +----------------------------------------------------+ Best States ------------- Heat Dissipation 54 Coolant Potential 65 Energy Generation 12 Energy Capacity 265 Matter Stores 300 Matter Capacity 300 Sight Range 16 Terrain Scan Density 10 Armor Coverage 300 Evasion (%) 40 Recoil Reduction 2 Item Schematics ----------------- None Robot Schematics ------------------ None Fabricated ------------ Nothing Alien Tech Used ----------------- None Achievements -------------- None Challenges ------------ None Game ------ Seed RefineryServoMallet Manual? 0 Play Time 00:29:13 Cumulative 21.5 hours Start 2024.04.06 @ 23:47:45 End 2024.04.07 @ 00:14:53 Sessions 1 Manual Loads 0 Difficulty Rogue Special Mode None Game No. 18 Rogue 18 Adventurer 0 Explorer 0 Win Type - Total 0 Types 0/0/0/0/0/0/0/0/0 Lore% 16 Gallery% 18 Achievement% 16 Wizard Run 0 Options --------- Layout 1 ASCII 0 Keyboard 0 Movement Mouse Keybinds 0 Fullscreen 1 Font 24/Smallcaps Map View 50x35 Zoom Use 0% Tactical HUD 0 Map Filters NONE Filters NONE Steam 1 RUN: 3381248f-ce26-4ad2-a9da-0f0c87a796b7